[Event "Early-Titled-Tuesday-Blitz-April-16-2024"]
[Site "Chess.com"]
[Date "2024.04.16"]
[Round "1"]
[White "kritipatel"]
[Black "MrChampion_Coach"]
[Result "0-1"]
[WhiteElo "2164"]
[BlackElo "2575"]
[TimeControl "180+1"]
[EndTime "8:08:14 PDT"]
[Termination "MrChampion_Coach won by checkmate"]

1. e4 {[%clk 0:02:59.5]} 1... c5 {[%clk 0:02:57.6]} 2. d4 {[%clk 0:02:59.2]}
2... cxd4 {[%clk 0:02:57.4]} 3. c3 {[%clk 0:02:59.9]} 3... Nf6 {[%clk
0:02:57.3]} 4. e5 {[%clk 0:02:59.3]} 4... Nd5 {[%clk 0:02:58]} 5. Nf3 {[%clk
0:02:59.3]} 5... d6 {[%clk 0:02:57.3]} 6. Bc4 {[%clk 0:02:49.4]} 6... Nb6 {[%clk
0:02:56.8]} 7. Bb3 {[%clk 0:02:50]} 7... d5 {[%clk 0:02:43]} 8. cxd4 {[%clk
0:02:46.5]} 8... Nc6 {[%clk 0:02:32.7]} 9. O-O {[%clk 0:02:46.7]} 9... Bg4
{[%clk 0:02:32.3]} 10. Be3 {[%clk 0:02:45.3]} 10... e6 {[%clk 0:02:32.5]} 11.
Nbd2 {[%clk 0:02:42.9]} 11... Be7 {[%clk 0:02:27.8]} 12. Rc1 {[%clk 0:02:42.6]}
12... O-O {[%clk 0:02:26.6]} 13. h3 {[%clk 0:02:42.8]} 13... Bh5 {[%clk
0:02:25.1]} 14. Re1 {[%clk 0:02:43]} 14... f6 {[%clk 0:02:24.9]} 15. Qc2 {[%clk
0:02:32.5]} 15... Bg6 {[%clk 0:02:18.7]} 16. Qd1 {[%clk 0:02:30.6]} 16... Nb4
{[%clk 0:02:15.5]} 17. Nh4 {[%clk 0:02:07.2]} 17... Nd3 {[%clk 0:02:05.2]} 18.
Nxg6 {[%clk 0:02:04.9]} 18... hxg6 {[%clk 0:02:05.9]} 19. Qg4 {[%clk 0:01:59.6]}
19... f5 {[%clk 0:01:57.6]} 20. Qxg6 {[%clk 0:01:55.3]} 20... Nxe1 {[%clk
0:01:50.2]} 21. Qxe6+ {[%clk 0:01:49.2]} 21... Kh8 {[%clk 0:01:37.2]} 22. Rxe1
{[%clk 0:01:49.2]} 22... Qe8 {[%clk 0:01:26.5]} 23. Nf3 {[%clk 0:00:58.9]} 23...
Rc8 {[%clk 0:01:22.4]} 24. Bxd5 {[%clk 0:00:45.3]} 24... f4 {[%clk 0:01:07.1]}
25. Bd2 {[%clk 0:00:31.6]} 25... Nxd5 {[%clk 0:01:05.2]} 26. Qxd5 {[%clk
0:00:31.3]} 26... Qc6 {[%clk 0:00:50.4]} 27. Qb3 {[%clk 0:00:30.7]} 27... Rcd8
{[%clk 0:00:31.8]} 28. Rc1 {[%clk 0:00:25.2]} 28... Qd7 {[%clk 0:00:19]} 29. Qd3
{[%clk 0:00:20.5]} 29... Rc8 {[%clk 0:00:16.8]} 30. Re1 {[%clk 0:00:18.3]} 30...
Qd5 {[%clk 0:00:16.7]} 31. Rd1 {[%clk 0:00:17.5]} 31... b5 {[%clk 0:00:15.6]}
32. a3 {[%clk 0:00:17.1]} 32... Rcd8 {[%clk 0:00:16.1]} 33. Bc3 {[%clk
0:00:16.4]} 33... Bc5 {[%clk 0:00:15.6]} 34. Qe2 {[%clk 0:00:14.4]} 34... Be7
{[%clk 0:00:13.5]} 35. Rd3 {[%clk 0:00:14.1]} 35... Qc4 {[%clk 0:00:13.9]} 36.
Qd2 {[%clk 0:00:14.2]} 36... Qd5 {[%clk 0:00:14.3]} 37. Qd1 {[%clk 0:00:14.5]}
37... a5 {[%clk 0:00:14.7]} 38. Bd2 {[%clk 0:00:14.3]} 38... b4 {[%clk 0:00:15]}
39. axb4 {[%clk 0:00:14.4]} 39... axb4 {[%clk 0:00:15.9]} 40. Qc1 {[%clk
0:00:14.8]} 40... Rc8 {[%clk 0:00:16.2]} 41. Qd1 {[%clk 0:00:15.2]} 41... Ra8
{[%clk 0:00:14.9]} 42. Rb3 {[%clk 0:00:15.6]} 42... g5 {[%clk 0:00:14.9]} 43.
Bxb4 {[%clk 0:00:16]} 43... Rfb8 {[%clk 0:00:15]} 44. Bxe7 {[%clk 0:00:14.4]}
44... Qxb3 {[%clk 0:00:15.7]} 45. Bf6+ {[%clk 0:00:14.8]} 45... Kg8 {[%clk
0:00:15.1]} 46. Qc1 {[%clk 0:00:15.3]} 46... Rc8 {[%clk 0:00:13.9]} 47. Qd2
{[%clk 0:00:15.4]} 47... Ra1+ {[%clk 0:00:10]} 48. Kh2 {[%clk 0:00:15.3]} 48...
Qd1 {[%clk 0:00:10.2]} 49. Qxd1 {[%clk 0:00:13.2]} 49... Rxd1 {[%clk 0:00:11.1]}
50. Nxg5 {[%clk 0:00:13.8]} 50... Rc2 {[%clk 0:00:10.8]} 51. Ne6 {[%clk
0:00:14.2]} 51... Rxf2 {[%clk 0:00:10.1]} 52. Bg5 {[%clk 0:00:12.2]} 52... f3
{[%clk 0:00:09.7]} 53. Kg3 {[%clk 0:00:11.5]} 53... fxg2 {[%clk 0:00:10]} 54.
Kh4 {[%clk 0:00:11.5]} 54... g1=Q {[%clk 0:00:10.5]} 55. d5 {[%clk 0:00:11]}
55... Rf7 {[%clk 0:00:11.3]} 56. d6 {[%clk 0:00:11.4]} 56... Rh7+ {[%clk
0:00:12.1]} 57. Bh6 {[%clk 0:00:08.3]} 57... Rxh6# {[%clk 0:00:13]} 0-1

[Event "Early-Titled-Tuesday-Blitz-April-16-2024"]
[Site "Chess.com"]
[Date "2024.04.16"]
[Round "1"]
[White "marcodobrikov"]
[Black "amintabatabaei"]
[Result "0-1"]
[WhiteElo "2530"]
[BlackElo "3043"]
[TimeControl "180+1"]
[EndTime "8:08:15 PDT"]
[Termination "amintabatabaei won on time"]

1. d4 {[%clk 0:03:00]} 1... d5 {[%clk 0:02:59.6]} 2. Nf3 {[%clk 0:03:00.5]} 2...
Nf6 {[%clk 0:02:59.6]} 3. Bf4 {[%clk 0:03:01.4]} 3... c5 {[%clk 0:02:59.4]} 4.
e3 {[%clk 0:03:00.1]} 4... Nc6 {[%clk 0:03:00.1]} 5. c3 {[%clk 0:03:00.3]} 5...
Nh5 {[%clk 0:02:57.9]} 6. Bg3 {[%clk 0:02:59.3]} 6... Qb6 {[%clk 0:02:56.9]} 7.
Qb3 {[%clk 0:02:59.8]} 7... c4 {[%clk 0:02:56.7]} 8. Qxb6 {[%clk 0:02:57.3]}
8... axb6 {[%clk 0:02:57.4]} 9. a3 {[%clk 0:02:36.9]} 9... Nxg3 {[%clk
0:02:56.5]} 10. hxg3 {[%clk 0:02:37.1]} 10... b5 {[%clk 0:02:57.4]} 11. Kd2
{[%clk 0:02:33.9]} 11... f6 {[%clk 0:02:45.6]} 12. Be2 {[%clk 0:02:32.6]} 12...
e5 {[%clk 0:02:45.7]} 13. Kc1 {[%clk 0:02:31.5]} 13... e4 {[%clk 0:02:39.3]} 14.
Nfd2 {[%clk 0:02:27.2]} 14... f5 {[%clk 0:02:37.8]} 15. b4 {[%clk 0:02:21.2]}
15... Be6 {[%clk 0:02:32.1]} 16. Kb2 {[%clk 0:02:15.4]} 16... Bd6 {[%clk
0:02:31.7]} 17. Rh4 {[%clk 0:02:08.6]} 17... Kf7 {[%clk 0:02:29.2]} 18. Nf1
{[%clk 0:02:05.5]} 18... g5 {[%clk 0:02:29.1]} 19. Rh6 {[%clk 0:02:02.9]} 19...
Bf8 {[%clk 0:02:22.8]} 20. Rh1 {[%clk 0:01:53.2]} 20... Kg6 {[%clk 0:02:22.9]}
21. Bh5+ {[%clk 0:01:52.9]} 21... Kf6 {[%clk 0:02:22.7]} 22. Be2 {[%clk
0:01:53.2]} 22... h6 {[%clk 0:02:23.4]} 23. Nbd2 {[%clk 0:01:40.7]} 23... Bd6
{[%clk 0:02:23.1]} 24. Rd1 {[%clk 0:01:37.1]} 24... Bf7 {[%clk 0:02:20.9]} 25.
Bh5 {[%clk 0:01:35.8]} 25... Be6 {[%clk 0:02:17.7]} 26. Re1 {[%clk 0:01:33.9]}
26... Ra6 {[%clk 0:02:15.3]} 27. Nb1 {[%clk 0:01:33.5]} 27... Kg7 {[%clk
0:02:13.7]} 28. Bd1 {[%clk 0:01:32.7]} 28... Ne7 {[%clk 0:02:12.5]} 29. Rh2
{[%clk 0:01:30]} 29... Raa8 {[%clk 0:01:58.6]} 30. Nfd2 {[%clk 0:01:26.3]} 30...
f4 {[%clk 0:01:52.8]} 31. gxf4 {[%clk 0:01:24.5]} 31... gxf4 {[%clk 0:01:53.7]}
32. exf4 {[%clk 0:01:19.3]} 32... Bxf4 {[%clk 0:01:54.6]} 33. g3 {[%clk
0:01:19.7]} 33... Bd6 {[%clk 0:01:46.6]} 34. f3 {[%clk 0:01:15.2]} 34... e3
{[%clk 0:01:27.3]} 35. Rxe3 {[%clk 0:01:13.7]} 35... Kf6 {[%clk 0:01:24.8]} 36.
Rhe2 {[%clk 0:00:43.4]} 36... Bd7 {[%clk 0:01:20.7]} 37. g4 {[%clk 0:00:44]}
37... Ng6 {[%clk 0:01:13.3]} 38. Bc2 {[%clk 0:00:34.1]} 38... Bf4 {[%clk
0:01:13.3]} 39. Bxg6 {[%clk 0:00:23.5]} 39... Bxe3 {[%clk 0:01:13.3]} 40. Rxe3
{[%clk 0:00:21.6]} 40... Kxg6 {[%clk 0:01:14]} 41. Re5 {[%clk 0:00:22.2]} 41...
Bc6 {[%clk 0:01:14.1]} 42. f4 {[%clk 0:00:21.6]} 42... Rhf8 {[%clk 0:01:11.3]}
43. Re6+ {[%clk 0:00:18.2]} 43... Kf7 {[%clk 0:01:04.9]} 44. Rxh6 {[%clk
0:00:17.5]} 44... Kg7 {[%clk 0:01:05.6]} 45. Rh3 {[%clk 0:00:07.9]} 45... Rxf4
{[%clk 0:01:06]} 46. Nf3 {[%clk 0:00:08.4]} 46... Rh8 {[%clk 0:01:05.2]} 47.
Rxh8 {[%clk 0:00:07.7]} 47... Kxh8 {[%clk 0:01:06.1]} 48. Ne5 {[%clk 0:00:08.1]}
48... Rf2+ {[%clk 0:01:00.8]} 49. Kc1 {[%clk 0:00:08.3]} 49... Kg7 {[%clk
0:01:01.2]} 50. Nd2 {[%clk 0:00:08.4]} 50... Kf6 {[%clk 0:01:01.9]} 51. Kc2
{[%clk 0:00:05.9]} 51... Kg5 {[%clk 0:01:01.4]} 52. Kd1 {[%clk 0:00:06.2]} 52...
Kf4 {[%clk 0:01:00.5]} 53. Ke1 {[%clk 0:00:05.4]} 53... Rg2 {[%clk 0:00:59.8]}
54. Nf1 {[%clk 0:00:02.9]} 54... Rc2 {[%clk 0:00:59.6]} 55. Nd2 {[%clk 0:00:03]}
55... Rxc3 {[%clk 0:00:59.7]} 56. g5 {[%clk 0:00:03.6]} 56... Kxg5 {[%clk
0:00:57.8]} 57. Kd1 {[%clk 0:00:03.7]} 57... Rxa3 {[%clk 0:00:57.4]} 58. Kc2
{[%clk 0:00:04.5]} 58... Rg3 {[%clk 0:00:57.8]} 59. Ndf3+ {[%clk 0:00:04.5]}
59... Kf4 {[%clk 0:00:57.9]} 60. Nd2 {[%clk 0:00:04.4]} 60... Rg2 {[%clk
0:00:57.9]} 61. Kc3 {[%clk 0:00:04.8]} 61... Ke3 {[%clk 0:00:55.4]} 62. Nf1+
{[%clk 0:00:05.2]} 62... Ke2 {[%clk 0:00:56.1]} 63. Nd2 {[%clk 0:00:05.5]} 63...
Rg3+ {[%clk 0:00:55.9]} 64. Kc2 {[%clk 0:00:06.1]} 64... Be8 {[%clk 0:00:55.8]}
65. Nb1 {[%clk 0:00:05.9]} 65... Ke3 {[%clk 0:00:49.6]} 66. Nc3 {[%clk 0:00:06]}
66... Kxd4 {[%clk 0:00:49.1]} 67. Nxb5+ {[%clk 0:00:05.8]} 67... Bxb5 {[%clk
0:00:47]} 0-1

[Event "Early-Titled-Tuesday-Blitz-April-16-2024"]
[Site "Chess.com"]
[Date "2024.04.16"]
[Round "1"]
[White "SaiAgni_98"]
[Black "baki83"]
[Result "0-1"]
[WhiteElo "2507"]
[BlackElo "2921"]
[TimeControl "180+1"]
[EndTime "8:08:17 PDT"]
[Termination "baki83 won on time"]

1. e4 {[%clk 0:02:56.3]} 1... c5 {[%clk 0:02:59.6]} 2. Nc3 {[%clk 0:02:53.8]}
2... e6 {[%clk 0:02:59.1]} 3. Nf3 {[%clk 0:02:47]} 3... Nc6 {[%clk 0:02:58.9]}
4. g3 {[%clk 0:02:41]} 4... Nf6 {[%clk 0:02:54.1]} 5. Bg2 {[%clk 0:02:39.9]}
5... d5 {[%clk 0:02:54.4]} 6. exd5 {[%clk 0:02:39.5]} 6... exd5 {[%clk
0:02:54.8]} 7. d4 {[%clk 0:02:39.6]} 7... Bg4 {[%clk 0:02:53.7]} 8. dxc5 {[%clk
0:02:35]} 8... Bxc5 {[%clk 0:02:54.6]} 9. O-O {[%clk 0:02:34.4]} 9... O-O {[%clk
0:02:54.4]} 10. h3 {[%clk 0:02:28.2]} 10... Bh5 {[%clk 0:02:50.1]} 11. Na4
{[%clk 0:02:16.5]} 11... Be7 {[%clk 0:02:33.4]} 12. Bg5 {[%clk 0:01:45.4]} 12...
h6 {[%clk 0:02:27.8]} 13. Bxf6 {[%clk 0:01:42.4]} 13... Bxf6 {[%clk 0:02:28.7]}
14. Qd2 {[%clk 0:01:39]} 14... Qd6 {[%clk 0:02:15.3]} 15. Nc3 {[%clk 0:01:29]}
15... Rad8 {[%clk 0:02:13.8]} 16. Rfe1 {[%clk 0:01:18.1]} 16... Bxf3 {[%clk
0:01:49.3]} 17. Bxf3 {[%clk 0:01:16.9]} 17... Qb4 {[%clk 0:01:47.2]} 18. Rab1
{[%clk 0:01:08.4]} 18... Ne5 {[%clk 0:01:39.9]} 19. Be2 {[%clk 0:01:00]} 19...
Bg5 {[%clk 0:01:17.8]} 20. Qd1 {[%clk 0:00:48]} 20... Qc5 {[%clk 0:01:12.6]} 21.
Kg2 {[%clk 0:00:34.1]} 21... d4 {[%clk 0:01:01.4]} 22. Ne4 {[%clk 0:00:28.1]}
22... Qc6 {[%clk 0:01:01.5]} 23. f3 {[%clk 0:00:11.2]} 23... Be3 {[%clk
0:00:58.2]} 24. Bd3 {[%clk 0:00:05.9]} 24... f5 {[%clk 0:00:54.9]} 25. Nf2
{[%clk 0:00:04.8]} 25... a6 {[%clk 0:00:41.8]} 26. Be2 {[%clk 0:00:04.9]} 26...
Kh8 {[%clk 0:00:41.2]} 27. Nd3 {[%clk 0:00:05.2]} 27... Ng6 {[%clk 0:00:38.7]}
28. Kh2 {[%clk 0:00:04.5]} 28... Qc7 {[%clk 0:00:37.2]} 29. f4 {[%clk
0:00:04.6]} 29... Rf6 {[%clk 0:00:35.6]} 30. Bf3 {[%clk 0:00:04.9]} 30... Rc8
{[%clk 0:00:32]} 31. Re2 {[%clk 0:00:05.4]} 31... b5 {[%clk 0:00:32]} 32. Qh1
{[%clk 0:00:05.1]} 32... Nxf4 {[%clk 0:00:27.8]} 33. gxf4 {[%clk 0:00:04.2]}
33... Bxf4+ {[%clk 0:00:28.2]} 34. Kg2 {[%clk 0:00:02.2]} 34... Rg6+ {[%clk
0:00:28.5]} 35. Kf1 {[%clk 0:00:02.6]} 35... Be3 {[%clk 0:00:28.9]} 36. Rg2
{[%clk 0:00:02.1]} 36... Rxg2 {[%clk 0:00:28.4]} 37. Qxg2 {[%clk 0:00:03]} 37...
Qxc2 {[%clk 0:00:28.6]} 38. Qxc2 {[%clk 0:00:03.9]} 38... Rxc2 {[%clk
0:00:28.7]} 39. Be2 {[%clk 0:00:04.8]} 39... g5 {[%clk 0:00:26.9]} 40. Ne1
{[%clk 0:00:05.2]} 40... Rc5 {[%clk 0:00:24.7]} 41. Rd1 {[%clk 0:00:05.1]} 41...
Kg7 {[%clk 0:00:22.5]} 42. Kg2 {[%clk 0:00:04.9]} 42... Kf6 {[%clk 0:00:22.1]}
43. Kf3 {[%clk 0:00:04.6]} 43... h5 {[%clk 0:00:20.9]} 44. b4 {[%clk 0:00:04.4]}
44... Rc3 {[%clk 0:00:19.6]} 45. Nd3 {[%clk 0:00:04.7]} 45... g4+ {[%clk
0:00:19.6]} 46. hxg4 {[%clk 0:00:05]} 46... hxg4+ {[%clk 0:00:20.3]} 47. Kg2
{[%clk 0:00:05.3]} 47... Rc2 {[%clk 0:00:17.8]} 48. Kf1 {[%clk 0:00:05.8]} 48...
Rxa2 {[%clk 0:00:16.2]} 49. Nc5 {[%clk 0:00:03.6]} 49... Kg5 {[%clk 0:00:15.5]}
50. Ne6+ {[%clk 0:00:02.6]} 50... Kh4 {[%clk 0:00:15.4]} 51. Nxd4 {[%clk
0:00:03.5]} 51... Bxd4 {[%clk 0:00:11.5]} 52. Rxd4 {[%clk 0:00:04]} 52... Rb2
{[%clk 0:00:11.1]} 53. Kf2 {[%clk 0:00:02.4]} 53... Kg5 {[%clk 0:00:10.4]} 54.
Ke3 {[%clk 0:00:02.1]} 54... f4+ {[%clk 0:00:10.2]} 0-1

[Event "Early-Titled-Tuesday-Blitz-April-16-2024"]
[Site "Chess.com"]
[Date "2024.04.16"]
[Round "1"]
[White "snowlord"]
[Black "Savagelittlemole"]
[Result "1-0"]
[WhiteElo "2953"]
[BlackElo "2517"]
[TimeControl "180+1"]
[EndTime "8:08:19 PDT"]
[Termination "snowlord won by checkmate"]

1. e4 {[%clk 0:02:57.8]} 1... c5 {[%clk 0:02:59.3]} 2. Nf3 {[%clk 0:02:56.9]}
2... d6 {[%clk 0:02:59.7]} 3. c3 {[%clk 0:02:56]} 3... g6 {[%clk 0:02:58.8]} 4.
d4 {[%clk 0:02:55.7]} 4... cxd4 {[%clk 0:02:59.2]} 5. cxd4 {[%clk 0:02:56.6]}
5... Bg7 {[%clk 0:02:59.4]} 6. h3 {[%clk 0:02:56.8]} 6... Nf6 {[%clk 0:02:59]}
7. Nc3 {[%clk 0:02:57.2]} 7... O-O {[%clk 0:02:59.2]} 8. Be2 {[%clk 0:02:56.4]}
8... a6 {[%clk 0:02:58.4]} 9. O-O {[%clk 0:02:49.9]} 9... b5 {[%clk 0:02:58.4]}
10. e5 {[%clk 0:02:50.4]} 10... Ne8 {[%clk 0:02:57]} 11. a4 {[%clk 0:02:45.5]}
11... b4 {[%clk 0:02:53.3]} 12. Nd5 {[%clk 0:02:45.7]} 12... a5 {[%clk
0:02:49.1]} 13. Bg5 {[%clk 0:02:42.4]} 13... Ra7 {[%clk 0:02:42.3]} 14. Bb5
{[%clk 0:02:29.4]} 14... Be6 {[%clk 0:02:14.4]} 15. Nf4 {[%clk 0:02:19.7]} 15...
Nc7 {[%clk 0:02:11.1]} 16. Rc1 {[%clk 0:01:55.9]} 16... h6 {[%clk 0:01:44.1]}
17. Bh4 {[%clk 0:01:50.2]} 17... Bf5 {[%clk 0:01:28.9]} 18. exd6 {[%clk
0:01:41.8]} 18... Qxd6 {[%clk 0:01:28.2]} 19. Bg3 {[%clk 0:01:42.4]} 19... Nxb5
{[%clk 0:01:24]} 20. axb5 {[%clk 0:01:41.8]} 20... Qd8 {[%clk 0:01:16]} 21. Re1
{[%clk 0:01:38.9]} 21... Rd7 {[%clk 0:01:13.1]} 22. d5 {[%clk 0:01:21.8]} 22...
e6 {[%clk 0:01:03.5]} 23. Ne5 {[%clk 0:01:20.5]} 23... Rd6 {[%clk 0:00:54.6]}
24. Nc4 {[%clk 0:01:06.8]} 24... Rd7 {[%clk 0:00:44.5]} 25. d6 {[%clk
0:00:45.3]} 25... Rb7 {[%clk 0:00:44.6]} 26. Qa4 {[%clk 0:00:40.4]} 26... Nd7
{[%clk 0:00:40]} 27. Qxa5 {[%clk 0:00:29.2]} 27... Qxa5 {[%clk 0:00:39.6]} 28.
Nxa5 {[%clk 0:00:30.1]} 28... Rxb5 {[%clk 0:00:40]} 29. Nc4 {[%clk 0:00:27.5]}
29... g5 {[%clk 0:00:28.4]} 30. Nh5 {[%clk 0:00:26.1]} 30... Bh8 {[%clk
0:00:21]} 31. Bh2 {[%clk 0:00:24]} 31... Bg6 {[%clk 0:00:17.7]} 32. Ng3 {[%clk
0:00:22.3]} 32... Rd5 {[%clk 0:00:18]} 33. Ne4 {[%clk 0:00:20.8]} 33... Rd8
{[%clk 0:00:15.4]} 34. f3 {[%clk 0:00:19.8]} 34... Nf6 {[%clk 0:00:15.4]} 35.
Bg3 {[%clk 0:00:06]} 35... Nxe4 {[%clk 0:00:12]} 36. fxe4 {[%clk 0:00:06.9]}
36... Bd4+ {[%clk 0:00:11.2]} 37. Bf2 {[%clk 0:00:06.5]} 37... Bxf2+ {[%clk
0:00:11]} 38. Kxf2 {[%clk 0:00:07.4]} 38... Rd4 {[%clk 0:00:10.8]} 39. e5 {[%clk
0:00:07.3]} 39... Bd3 {[%clk 0:00:10.6]} 40. Na5 {[%clk 0:00:06.5]} 40... Bb5
{[%clk 0:00:09.9]} 41. Nb7 {[%clk 0:00:06.2]} 41... Rb8 {[%clk 0:00:07.6]} 42.
Nc5 {[%clk 0:00:05.2]} 42... Rd2+ {[%clk 0:00:07.1]} 43. Kg3 {[%clk 0:00:05.8]}
43... Bc6 {[%clk 0:00:06.4]} 44. Rg1 {[%clk 0:00:04.2]} 44... Rd8 {[%clk
0:00:04.2]} 45. Rce1 {[%clk 0:00:03.8]} 45... Rxb2 {[%clk 0:00:04]} 46. Rc1
{[%clk 0:00:03.8]} 46... Rd2 {[%clk 0:00:04.1]} 47. h4 {[%clk 0:00:03.5]} 47...
Kg7 {[%clk 0:00:03.7]} 48. hxg5 {[%clk 0:00:03.5]} 48... hxg5 {[%clk 0:00:04.6]}
49. Kg4 {[%clk 0:00:04.3]} 49... Rh8 {[%clk 0:00:03.5]} 50. Kxg5 {[%clk
0:00:04.1]} 50... Rd4 {[%clk 0:00:03.4]} 51. g4 {[%clk 0:00:03.7]} 51... Bf3
{[%clk 0:00:02.8]} 52. Rcf1 {[%clk 0:00:03.6]} 52... Be2 {[%clk 0:00:02.1]} 53.
Rf2 {[%clk 0:00:03.9]} 53... Bd3 {[%clk 0:00:02.2]} 54. Rg3 {[%clk 0:00:04.4]}
54... Bb1 {[%clk 0:00:01.9]} 55. Rgf3 {[%clk 0:00:04.9]} 55... Rd1 {[%clk
0:00:02]} 56. Rxf7+ {[%clk 0:00:04.9]} 56... Kg8 {[%clk 0:00:02.7]} 57. Rf8+
{[%clk 0:00:05.8]} 57... Kg7 {[%clk 0:00:03.4]} 58. R2f7# {[%clk 0:00:06.7]} 1-0

[Event "Early-Titled-Tuesday-Blitz-April-16-2024"]
[Site "Chess.com"]
[Date "2024.04.16"]
[Round "1"]
[White "FuenfgegenWilly"]
[Black "Aradhya2000"]
[Result "0-1"]
[WhiteElo "2437"]
[BlackElo "2771"]
[TimeControl "180+1"]
[EndTime "8:08:21 PDT"]
[Termination "Aradhya2000 won on time"]

1. d4 {[%clk 0:02:53.4]} 1... d5 {[%clk 0:02:59.2]} 2. c4 {[%clk 0:02:53.5]}
2... c6 {[%clk 0:02:58.6]} 3. cxd5 {[%clk 0:02:52.7]} 3... cxd5 {[%clk
0:02:57.1]} 4. Nc3 {[%clk 0:02:53.6]} 4... Nf6 {[%clk 0:02:55.3]} 5. Bf4 {[%clk
0:02:53.5]} 5... Nc6 {[%clk 0:02:55.4]} 6. e3 {[%clk 0:02:53.8]} 6... a6 {[%clk
0:02:53.2]} 7. Bd3 {[%clk 0:02:53.4]} 7... Bg4 {[%clk 0:02:53.3]} 8. f3 {[%clk
0:02:53.4]} 8... Bh5 {[%clk 0:02:52.5]} 9. Nge2 {[%clk 0:02:53.8]} 9... e6
{[%clk 0:02:51.5]} 10. h4 {[%clk 0:02:53.5]} 10... Bg6 {[%clk 0:02:51.2]} 11.
Kf2 {[%clk 0:02:51.7]} 11... Bd6 {[%clk 0:02:45.5]} 12. g4 {[%clk 0:02:50.6]}
12... Bxd3 {[%clk 0:02:39.9]} 13. Qxd3 {[%clk 0:02:50.7]} 13... h6 {[%clk
0:02:39.8]} 14. Rac1 {[%clk 0:02:36.1]} 14... g6 {[%clk 0:01:55.1]} 15. Bxd6
{[%clk 0:02:13.2]} 15... Qxd6 {[%clk 0:01:56]} 16. Ng3 {[%clk 0:02:04.3]} 16...
h5 {[%clk 0:01:52]} 17. g5 {[%clk 0:02:01.4]} 17... Nd7 {[%clk 0:01:50.3]} 18.
e4 {[%clk 0:01:45.2]} 18... O-O {[%clk 0:01:25.8]} 19. e5 {[%clk 0:01:21.6]}
19... Qb4 {[%clk 0:01:25.2]} 20. Nge2 {[%clk 0:01:21.5]} 20... Qxb2 {[%clk
0:01:22.2]} 21. Rb1 {[%clk 0:01:20.9]} 21... Nb4 {[%clk 0:01:17]} 22. Qe3 {[%clk
0:01:03.5]} 22... Qa3 {[%clk 0:01:16.4]} 23. Nxd5 {[%clk 0:00:57.3]} 23... Nd3+
{[%clk 0:01:08.8]} 24. Kg3 {[%clk 0:00:45.9]} 24... exd5 {[%clk 0:01:08.8]} 25.
Rb3 {[%clk 0:00:45.8]} 25... Qxa2 {[%clk 0:01:01.6]} 26. Qxd3 {[%clk 0:00:45.8]}
26... b5 {[%clk 0:00:32.5]} 27. e6 {[%clk 0:00:37.7]} 27... Rfe8 {[%clk
0:00:28.5]} 28. Nf4 {[%clk 0:00:35.3]} 28... Nf8 {[%clk 0:00:28.2]} 29. Re1
{[%clk 0:00:30.3]} 29... Qa4 {[%clk 0:00:24]} 30. Rc3 {[%clk 0:00:29.2]} 30...
Rac8 {[%clk 0:00:15.1]} 31. Rxc8 {[%clk 0:00:22.7]} 31... Rxc8 {[%clk 0:00:15]}
32. exf7+ {[%clk 0:00:22.9]} 32... Kxf7 {[%clk 0:00:14.7]} 33. Qe3 {[%clk
0:00:23.2]} 33... Qb4 {[%clk 0:00:13.7]} 34. Nxd5 {[%clk 0:00:20.6]} 34... Qd6+
{[%clk 0:00:13.4]} 35. Nf4 {[%clk 0:00:20.8]} 35... b4 {[%clk 0:00:13.6]} 36.
Qb3+ {[%clk 0:00:19.5]} 36... Kg7 {[%clk 0:00:13.4]} 37. d5 {[%clk 0:00:17.3]}
37... Rc3 {[%clk 0:00:13]} 38. Qa4 {[%clk 0:00:15.3]} 38... Rc4 {[%clk
0:00:12.9]} 39. Re4 {[%clk 0:00:15.2]} 39... Rxe4 {[%clk 0:00:13]} 40. fxe4
{[%clk 0:00:16.1]} 40... Qb6 {[%clk 0:00:10.9]} 41. Qe8 {[%clk 0:00:12.2]} 41...
Qe3+ {[%clk 0:00:10.4]} 42. Kg2 {[%clk 0:00:11]} 42... Qxf4 {[%clk 0:00:11]} 43.
Qe7+ {[%clk 0:00:09.7]} 43... Qf7 {[%clk 0:00:10.3]} 44. Qxb4 {[%clk 0:00:09.7]}
44... Qf4 {[%clk 0:00:09.1]} 45. Qe7+ {[%clk 0:00:08.5]} 45... Kg8 {[%clk
0:00:09.4]} 46. d6 {[%clk 0:00:08]} 46... Qg4+ {[%clk 0:00:09.7]} 47. Kf1 {[%clk
0:00:07.2]} 47... Qxh4 {[%clk 0:00:09.5]} 48. d7 {[%clk 0:00:06.7]} 48... Qh3+
{[%clk 0:00:10.2]} 49. Ke2 {[%clk 0:00:06.5]} 49... Qxd7 {[%clk 0:00:10.9]} 50.
Qf6 {[%clk 0:00:06.4]} 50... h4 {[%clk 0:00:10.5]} 51. e5 {[%clk 0:00:06.1]}
51... h3 {[%clk 0:00:10.7]} 52. Kf3 {[%clk 0:00:05.6]} 52... Qe6 {[%clk
0:00:10.9]} 53. Qf4 {[%clk 0:00:05]} 53... Qf5 {[%clk 0:00:11]} 54. Qxf5 {[%clk
0:00:04.7]} 54... gxf5 {[%clk 0:00:11.9]} 0-1